[Event "45th FIDE Olympiad 2024"]
[Site "Budapest"]
[Date "2024.09.16"]
[Round "6.75"]
[White "Petrov, Martin"]
[Black "Baasansuren, Erdene"]
[Result "1-0"]
[ECO "B92"]
[WhiteElo "2536"]
[BlackElo "2368"]
[Annotator "TA"]
[PlyCount "87"]
[EventDate "2024.09.05"]
[EventType "team-tourn"]
[EventCountry "HUN"]
[SourceTitle "playchess.com"]
[Source "ChessBase"]
[SourceQuality "1"]
[WhiteTeam "Bulgaria"]
[BlackTeam "Mongolia"]
[WhiteTeamCountry "BUL"]
[BlackTeamCountry "MGL"]
[TimeControl "40/5400+30:1800+30"]

{[%evp 17,86,0,0,-6,12,9,17,4,24,26,32,10,18,29,23,15,22,22,54,0,9,0,0,-28,-27,-20,-22,-25,0,0,0,-8,0,0,0,0,0,0,0,0,0,0,159,162,158,157,162,161,29982,1049,1000,878,860,936,941,877,750,699,998,991,939,0,0,0,1013,1001,29989,29990,29992,29993,29999]} 1. e4 c5 2. Nf3 d6 3. d4 cxd4 4. Nxd4 Nf6 5. Nc3 a6 6. Be2 e5 7. Nb3 Be7 8. O-O O-O 9. Qd3 Be6 10. Bd2 Nbd7 11. Nd5 Bxd5 12. exd5 {The position is equal.} a5 13. a4 Qc7 14. c4 Nc5 15. Nxc5 Qxc5 16. Ra3 Qc7 17. Qh3 Qc8 (17... Nd7 {with more complications.} 18. Rg3 Rfe8 19. b3 Bf6) 18. Qd3 Qc7 19. Kh1 Nd7 20. Qh3 Nc5 21. Bd3 {[%csl Gd3][%cal Rh3h7] [#]} e4 22. Bc2 f5 23. g4 Qb6 24. Bc3 (24. gxf5 Qxb2 25. Qc3 Qxc3 26. Rxc3 Rxf5 $16) 24... fxg4 25. Qxg4 Bf6 {And now ...Bxc3 would win.} 26. Rg1 $40 {[%cal Og4g7][%mdl 128] Threatening mate with Qxg7+! White attacks.} Bxc3 27. Rxc3 Rf7 (27... Qxb2 28. Qxg7#) (27... g6 28. Rh3 Qc7 (28... Qxb2 $2 29. Rxh7 Qf6 30. Rh6 $18) 29. Bxe4) 28. b3 {Strongly threatening Rh3.} Re8 29. Rh3 {Threatens to win with Qh5.} Nd7 $2 (29... Rxf2 30. Qxg7#) ({Black should play} 29... Re5 $11) 30. Bxe4 $16 Nf6 {[#]} (30... Qxf2 $2 {perishes.} 31. Bxh7+ (31. Rxh7 Qd4 $18) 31... Kf8 32. Bg6 $18) 31. Bxh7+ $1 {[%mdl 512]} Nxh7 32. Qh5 g5 $2 (32... Qxf2 $18 33. Qxh7+ Kf8) 33. Rxg5+ (33. Qg6+ $142 Kf8 34. Rxh7 Rxh7 35. Qf6+ (35. Qxh7 Qxf2 36. Qh6+ Ke7 $18) 35... Rf7 36. Qh8+ (36. Qxg5 $2 {is the wrong capture.} Qxf2 37. Qh6+ Ke7 $19) 36... Ke7 37. Re1+ Kd7 38. Qxe8+ Kc7 39. Qxf7+ Kb8 40. Qf8+ Ka7 41. Re8) 33... Kf8 $18 34. Qh6+ Ke7 35. Re5+ Kd7 36. Rxe8 Kxe8 37. Qe6+ Kf8 38. Qc8+ Ke7 39. Qe6+ $2 (39. Re3+ $18 Qxe3 40. fxe3) 39... Kf8 $11 40. Qc8+ $2 {[%mdl 8192]} (40. Re3 $11 Qd8 41. Kg2) 40... Ke7 $18 {[%cal Bf8e7,Be7f6,Bf6g7][%mdl 32]} 41. Re3+ Kf6 42. Rf3+ {White mates.} Kg7 43. Rg3+ Kf6 44. Qe6# {Weighted Error Value: White=0.28 (precise) /Black=0.52.  Mistake:       	White=1     	Black=2      Inaccurate:     	White=2     	Black=2      OK:         	White=8     	Black=11     Best:        	White=2     	Black=2      Brilliant:      	White=1     	---} 1-0

[Event "45th FIDE Olympiad 2024"]
[Site "Budapest"]
[Date "2024.09.16"]
[Round "6.75"]
[White "Lusako, Shedrack"]
[Black "Grassi, Enrico"]
[Result "1/2-1/2"]
[WhiteElo "1760"]
[BlackElo "1965"]
[PlyCount "62"]
[EventDate "2024.09.05"]
[EventType "team-tourn"]
[EventCountry "HUN"]
[WhiteTeam "Tanzania"]
[BlackTeam "San Marino"]
[WhiteTeamCountry "TAN"]
[BlackTeamCountry "SMR"]
[TimeControl "40/5400+30:1800+30"]

1. d4 Nf6 2. c4 c5 3. d5 b5 4. Nc3 b4 5. Na4 d6 6. Nf3 g6 7. g3 Bg7 8. Bg2 O-O 9. O-O Bd7 10. Qc2 Qa5 11. b3 Bf5 12. Qd1 Ne4 13. Bb2 Nc3 14. Bxc3 bxc3 15. Qe1 Bd7 16. Nb2 Qa3 17. Nd3 Na6 18. Qc1 Qxc1 19. Raxc1 Nb4 20. Nxb4 cxb4 21. Ne1 a5 22. Nd3 Ra7 23. Rfe1 Rb8 24. e4 a4 25. c5 axb3 26. axb3 Ra3 27. c6 Bc8 28. e5 Kf8 29. Rb1 dxe5 30. Nxe5 Bf5 31. Be4 Bxe5 1/2-1/2

[Event "45th FIDE Olympiad 2024"]
[Site "Budapest"]
[Date "2024.09.16"]
[Round "6.76"]
[White "Amilal, Munkhdalai"]
[Black "Grigorov, Grigor"]
[Result "1/2-1/2"]
[ECO "C70"]
[WhiteElo "2374"]
[BlackElo "2514"]
[Annotator "TA"]
[PlyCount "74"]
[EventDate "2024.09.05"]
[EventType "team-tourn"]
[EventCountry "HUN"]
[SourceTitle "playchess.com"]
[Source "ChessBase"]
[SourceQuality "1"]
[WhiteTeam "Mongolia"]
[BlackTeam "Bulgaria"]
[WhiteTeamCountry "MGL"]
[BlackTeamCountry "BUL"]
[TimeControl "40/5400+30:1800+30"]

{[%evp 12,73,25,22,24,0,0,0,0,-7,0,-13,-4,-13,-8,-16,0,-12,0,-6,0,-16,0,-8,-26,-29,-28,-10,0,0,0,0,-12,0,0,0,0,0,26,9,53,44,50,52,59,66,69,60,60,60,60,60,64,66,73,82,75,72,99,99,106,60,98,45]} 1. e4 e5 2. Nf3 Nc6 3. Bb5 a6 4. Ba4 Nge7 5. d4 exd4 6. Nxd4 Nxd4 7. Qxd4 Nc6 8. Bxc6 dxc6 9. Qxd8+ Kxd8 {The position is equal.} 10. Nc3 Be6 11. Bg5+ f6 12. O-O-O+ Kc8 13. Bd2 Bc5 14. f3 a5 15. b3 b6 16. Ne2 {[%cal Bc3e2,Be2d4,Bd4f5][%mdl 32]} Re8 17. Bc3 Bd6 18. Nd4 Bd7 19. g4 c5 20. Nf5 Bf8 21. Kb1 a4 22. h4 axb3 23. axb3 c4 24. bxc4 Bxf5 25. exf5 Ra4 26. Rhe1 Rxe1 27. Rxe1 {[#] Threatens to win with Re8+.} Bb4 ({Don't play} 27... Rxc4 $6 28. Bxf6 (28. Re8+ Kd7 $15) 28... Kd7 29. Rd1+ Ke8 30. Rd4 Rxd4 31. Bxd4 $16) 28. Bxb4 Rxb4+ $14 {[%mdl 4096] Endgame. KR-KR} 29. Kc1 Kd7 {Inhibits Re7+.} 30. Re4 Ra4 31. Kb2 {[%cal Oc4c5]} Rb4+ 32. Ka2 Ra4+ 33. Kb3 Ra1 {[%cal Oh7h5]} 34. Rd4+ Kc6 {[#]} 35. h5 $1 Rf1 36. Rd3 h6 37. Kb2 ({White should play} 37. c3 $16) 37... Re1 {Weighted Error Value: White=0.05 (flawless) /Black=0.06 (flawless) .  Mistake:       	White=1     	---        Inaccurate:     	---       	Black=3      OK:         	White=11    	Black=13     Best:        	White=3     	---        Strong:       	White=1     	---} 1/2-1/2

[Event "45th FIDE Olympiad 2024"]
[Site "Budapest"]
[Date "2024.09.16"]
[Round "6.76"]
[White "Piva, Michele"]
[Black "Henry, Marwa Michael"]
[Result "1-0"]
[WhiteElo "1721"]
[BlackElo "1715"]
[PlyCount "91"]
[EventDate "2024.09.05"]
[EventType "team-tourn"]
[EventCountry "HUN"]
[WhiteTeam "San Marino"]
[BlackTeam "Tanzania"]
[WhiteTeamCountry "SMR"]
[BlackTeamCountry "TAN"]
[TimeControl "40/5400+30:1800+30"]

1. d4 Nf6 2. c4 e6 3. Nc3 d5 4. Bf4 Bd6 5. e3 Bxf4 6. exf4 Qd6 7. g3 c5 8. Nf3 O-O 9. dxc5 Qxc5 10. Qd4 Qxd4 11. Nxd4 a6 12. Be2 dxc4 13. Bxc4 Rd8 14. Rd1 b5 15. Be2 Bb7 16. O-O Ne4 17. Ndxb5 Nc6 18. Nxe4 axb5 19. Nc5 Nd4 20. Nxb7 Nxe2+ 21. Kg2 Rd5 22. Rxd5 exd5 23. a3 Rb8 24. Nd6 Rb6 25. Nf5 Re6 26. Rd1 g6 27. Ne3 d4 28. Nc2 Rc6 29. Nxd4 Nxd4 30. Rxd4 Rc2 31. Rb4 Rc5 32. Kf3 Kf8 33. Rb3 Ke7 34. Rc3 Kd6 35. Ke3 Rd5 36. Rd3 Kc5 37. Rxd5+ Kxd5 38. Kd3 Kc5 39. b3 Kd5 40. g4 f6 41. f3 f5 42. h3 h5 43. a4 Kc5 44. axb5 Kxb5 45. Kc3 Kc5 46. b4+ 1-0

[Event "45th FIDE Olympiad 2024"]
[Site "Budapest"]
[Date "2024.09.16"]
[Round "6.77"]
[White "Mohammad Fahad, Rahman"]
[Black "Kozak, Adam"]
[Result "1/2-1/2"]
[ECO "B74"]
[WhiteElo "2419"]
[BlackElo "2609"]
[Annotator "TA"]
[PlyCount "78"]
[EventDate "2024.09.05"]
[EventType "team-tourn"]
[EventCountry "HUN"]
[SourceTitle "playchess.com"]
[Source "ChessBase"]
[SourceQuality "1"]
[WhiteTeam "Bangladesh"]
[BlackTeam "Hungary B"]
[WhiteTeamCountry "BAN"]
[TimeControl "40/5400+30:1800+30"]

{[%evp 19,78,0,-7,-29,-38,-37,-18,-15,0,0,0,-17,-16,-13,-11,-45,-37,-27,-18,-27,-8,-31,-21,-26,-13,-26,-16,-23,-16,-28,-26,-22,-20,-96,-5,-11,-22,0,0,0,0,-11,0,0,0,0,0,0,0,0,0,0,0,0,0,0,17,20,13,3,79]} 1. e4 c5 2. Nf3 d6 3. d4 cxd4 4. Nxd4 Nf6 5. Nc3 Nc6 6. Be2 g6 7. O-O Bg7 8. Nb3 O-O 9. Be3 a6 10. a4 Be6 11. f3 d5 12. exd5 Nxd5 13. Nxd5 Bxd5 14. c3 Rc8 15. Re1 Qd6 {[#] Hoping for ...Qe6.} 16. Bf1 Ne5 17. Bd4 Rfd8 18. Nd2 Bc6 {[%cal Oe5g4]} 19. Kh1 {[%cal Oe1e5] And now Rxe5! would win.} Bh6 {With the idea ...Bxd2.} 20. Nc4 (20. Rxe5 Bxd2 21. Qb3 (21. Qxd2 Qxe5 22. Kg1 Qf6 $19) 21... b5 (21... Bf4 22. Ree1 $17) 22. axb5 axb5) 20... Nxc4 21. Bxc4 e6 22. Qe2 Bg7 23. Bf2 Qf4 24. Be3 {Inhibits Rd2.} Qh4 {[%cal Oc6f3]} 25. Bb6 Rd6 {Threatening ...Bd7.} 26. a5 {[#]} (26. Bf2 $11 {remains equal.} Qg5 27. Be3) 26... Bf6 ({Of course not} 26... Bxf3 $6 27. Qxf3 Qxc4 28. Qxb7 $11) ({Better is} 26... Bh6 $1 $17 {next ...Bf4 is good for Black.} 27. Red1 Bf4) 27. Red1 {The position is equal.} Rxd1+ 28. Rxd1 Kg7 29. Bd3 Qf4 30. Re1 Bd8 31. Bd4+ Bf6 32. Bb6 Bd8 33. Bd4+ $1 Kg8 34. Be5 $1 {Dodges Bc7} Qh4 35. b4 {[%cal Bb2b4,Bb4b5][%mdl 32]} Bf6 36. Bg3 Qg5 37. c4 Rd8 (37... Bc3 $5 38. Rb1 $8 Ba4 $14) 38. b5 Be8 39. Bc7 Rc8 {Weighted Error Value: White=0.09 (flawless) /Black=0.06 (flawless) .  Mistake:       	White=1     	Black=2      Inaccurate:     	White=1     	---        OK:         	White=12    	Black=13     Strong:       	White=2     	---} (39... Rd7 $11 {keeps the balance.} 40. Bb6 axb5) 1/2-1/2

[Event "45th FIDE Olympiad 2024"]
[Site "Budapest"]
[Date "2024.09.16"]
[Round "6.77"]
[White "Moncur, Cecil"]
[Black "Muhammed, Shuaau"]
[Result "0-1"]
[WhiteElo "1839"]
[BlackElo "2052"]
[PlyCount "70"]
[EventDate "2024.09.05"]
[EventType "team-tourn"]
[EventCountry "HUN"]
[WhiteTeam "Bahamas"]
[BlackTeam "Maldives"]
[WhiteTeamCountry "BAH"]
[BlackTeamCountry "MDV"]
[TimeControl "40/5400+30:1800+30"]

1. d4 Nf6 2. c4 g6 3. Nc3 Bg7 4. e4 d6 5. f4 c5 6. d5 O-O 7. Nf3 e6 8. Be2 exd5 9. cxd5 Nbd7 10. e5 dxe5 11. fxe5 Ng4 12. Bg5 Qb6 13. O-O c4+ 14. Kh1 Ndxe5 15. Nxe5 Nxe5 16. Be7 Re8 17. d6 Bf5 18. Nd5 Qxb2 19. Nc7 Rad8 20. Nxe8 Rxe8 21. Rxf5 gxf5 22. d7 Nxd7 23. Rb1 Qe5 24. Bxc4 Qxe7 25. h3 Ne5 26. Bd5 b6 27. Qh5 Rd8 28. Bb3 f4 29. Rf1 f3 30. gxf3 Ng6 31. Rg1 Qf6 32. Bc2 Rd2 33. Bb3 Qb2 34. Bxf7+ Kxf7 35. Qf5+ Bf6 {0-} 0-1

[Event "45th FIDE Olympiad 2024"]
[Site "Budapest"]
[Date "2024.09.16"]
[Round "6.78"]
[White "Banusz, Tamas"]
[Black "Manon, Reja Neer"]
[Result "1-0"]
[ECO "A05"]
[WhiteElo "2605"]
[BlackElo "2417"]
[Annotator "TA"]
[PlyCount "75"]
[EventDate "2024.09.05"]
[EventType "team-tourn"]
[EventCountry "HUN"]
[SourceTitle "playchess.com"]
[Source "ChessBase"]
[SourceQuality "1"]
[WhiteTeam "Hungary B"]
[BlackTeam "Bangladesh"]
[BlackTeamCountry "BAN"]
[TimeControl "40/5400+30:1800+30"]

{[%evp 11,75,12,14,15,24,35,34,0,10,13,47,45,52,31,37,40,40,47,44,29,45,49,40,41,71,71,70,63,64,14,56,42,42,53,68,68,65,63,70,35,50,45,61,54,49,40,62,47,62,67,106,102,95,107,134,134,128,127,443,379,510,517,725,731,761,742]} 1. Nf3 Nf6 2. g3 b5 3. Bg2 Bb7 4. O-O e6 5. d3 Be7 6. e4 d6 7. Nd4 a6 8. Nb3 c6 {[%cal Bc7c6,Bc6c5,Bc5c4,Bc4c3][%mdl 32]} 9. d4 {White is slightly better.} Nbd7 10. a4 c5 {[#]} 11. e5 $1 Nd5 $1 12. exd6 Bxd6 13. axb5 axb5 14. Na3 c4 {...Bxa3 would now be deadly.} 15. Nxb5 Be7 16. Rxa8 Bxa8 17. Nd2 Qa5 18. Na3 (18. Nxc4 $2 {is the wrong capture.} Qxb5 19. Nd2 Qa6 $19) 18... c3 19. Ndc4 Qa6 20. Qd3 ({White should try} 20. bxc3 $14 O-O 21. Qd3) 20... Bxa3 21. Nxa3 Qxd3 22. cxd3 {Threatens to win with bxc3.} cxb2 23. Bxb2 O-O 24. Nc4 N5b6 25. f3 Bd5 26. Ne3 Bb7 27. Ba3 Ra8 28. Bc5 Na4 29. Rb1 Bc6 {[%cal Oa4c3]} 30. Rc1 Rc8 31. Bb4 Nab6 {[#]} 32. d5 $1 Nxd5 (32... Bxd5 33. Rxc8+) 33. Nxd5 exd5 34. Bh3 {White is more active.} Bb7 $2 {[%mdl 8192] This move loses the game for Black.} (34... h5 $16) 35. Re1 Bc6 {[#]} 36. Re7 $1 {White is clearly winning.} f5 37. Bxf5 {Black must now prevent Be6+.} Rd8 38. Be6+ {Weighted Error Value: White=0.10 (very precise) /Black=0.32.  Loses game:     	---       	Black=1      Mistake:       	White=1     	---        Inaccurate:     	White=2     	Black=6      OK:         	White=15    	Black=9      Best:        	White=1     	Black=1      Strong:       	White=1     	Black=1} 1-0

[Event "45th FIDE Olympiad 2024"]
[Site "Budapest"]
[Date "2024.09.16"]
[Round "6.78"]
[White "Mohamed, Hassan"]
[Black "Ferguson, Joseph"]
[Result "1-0"]
[WhiteElo "1880"]
[BlackElo "1797"]
[PlyCount "53"]
[EventDate "2024.09.05"]
[EventType "team-tourn"]
[EventCountry "HUN"]
[WhiteTeam "Maldives"]
[BlackTeam "Bahamas"]
[WhiteTeamCountry "MDV"]
[BlackTeamCountry "BAH"]
[TimeControl "40/5400+30:1800+30"]

1. d4 f5 2. c4 Nf6 3. Nc3 e6 4. d5 Bb4 5. dxe6 Bxc3+ 6. bxc3 dxe6 7. Qxd8+ Kxd8 8. Bg5 Ke7 9. Nf3 h6 10. Bf4 Na6 11. Ne5 Re8 12. h4 Nd7 13. f3 Kf6 14. g4 fxg4 15. Nxg4+ Kf7 16. Ne5+ Nxe5 17. Bxe5 c6 18. Rg1 g6 19. O-O-O Nc5 20. Bh3 b6 21. Rd6 Ba6 22. h5 g5 23. f4 Bxc4 24. fxg5 Bxe2 25. gxh6 Nd3+ 26. Rxd3 Bxd3 27. Rg7+ 1-0

[Event "45th FIDE Olympiad 2024"]
[Site "Budapest"]
[Date "2024.09.16"]
[Round "6.79"]
[White "Hossain, Enamul"]
[Black "Antal, Gergely"]
[Result "1/2-1/2"]
[ECO "B33"]
[WhiteElo "2354"]
[BlackElo "2544"]
[Annotator "TA"]
[PlyCount "84"]
[EventDate "2024.09.05"]
[EventType "team-tourn"]
[EventCountry "HUN"]
[SourceTitle "playchess.com"]
[Source "ChessBase"]
[SourceQuality "1"]
[WhiteTeam "Bangladesh"]
[BlackTeam "Hungary B"]
[WhiteTeamCountry "BAN"]
[TimeControl "40/5400+30:1800+30"]

{[%evp 27,84,44,47,14,25,26,28,17,15,15,15,0,0,0,0,0,8,0,-9,-9,0,0,65,58,207,216,208,208,214,213,193,204,202,66,83,-243,173,0,8,8,121,115,115,115,107,22,23,20,45,0,0,4,8,0,0,0,8,0,0]} 1. e4 c5 2. Nf3 {[%cal Bg1f3,Bf3d4,Bd4b5,Bb5a3,Ba3c2,Bc2e3][%mdl 32]} Nc6 3. d4 cxd4 4. Nxd4 Nf6 5. Nc3 e5 6. Ndb5 d6 7. Bg5 a6 8. Na3 b5 9. Bxf6 gxf6 10. Nd5 f5 11. c3 Bg7 12. exf5 Bxf5 13. Nc2 O-O 14. Nce3 Bd7 15. Bd3 f5 16. Qh5 {[%cal Rd3f5]} e4 17. Bc2 {White has an edge.} Kh8 18. O-O Qe8 19. Qh4 Ne5 20. Nb6 Ra7 21. Nxd7 Rxd7 22. Qh3 d5 {Threatening ...f4.} 23. f3 f4 24. Nf5 Ng6 (24... Nxf3+ $11 25. gxf3 Qg6+ 26. Kh1 Qxf5 27. Qxf5 Rxf5) 25. Rae1 $14 e3 {[#]} (25... Qc8 $14) 26. Nxe3 $1 $18 {[%mdl 512]} Re7 27. Bxg6 Qxg6 28. Nxd5 Rxe1 29. Rxe1 Qc2 30. Qh4 (30. Ne7 $18) 30... Qxb2 $14 {[#] Strongly threatening ...Qd2.} 31. h3 $2 {[%mdl 8192]} (31. Nxf4 $16 {and life is bright.} Bxc3 32. Ng6+ Kg8 33. Nxf8 Bxe1 34. Qxe1 Kxf8 35. h3) 31... Bxc3 $4 {[%mdl 8192]} (31... Qd2 $19 {and life is good for Black.} 32. Nxf4 Rxf4 (32... Qxf4 $2 33. Qxf4 Rxf4 34. Re8+ Rf8 35. Re6 $19) 33. Re8+ Rf8) 32. Re7 $2 (32. Nxc3 $18 {[%cal Oe1e7] Threatening mate with Re7!} Qxc3 33. Re6) 32... Bg7 {Threatens to win with ...Qd4+.} 33. Kh2 (33. Nxf4 $2 {too greedy.} Qc1+ (33... Qxa2 $2 34. Ng6+ Kg8 35. Nxf8 $18) 34. Kh2 Qxf4+ $19) 33... Qd4 (33... Qb1 $1 $11) 34. Qg5 $16 {White is more active.} Bf6 35. Nxf6 (35. Qxf4 $2 {is the wrong capture.} Qxf4+ (35... Qxd5 $2 36. Re2 $19) 36. Nxf4 Bxe7 $19) 35... Qxf6 36. Qxf6+ (36. Qc5 $16) 36... Rxf6 {[%mdl 4096] Endgame. KR-KR} 37. h4 Rc6 38. Ra7 h5 {The position is equal.} 39. a3 Kg8 40. Kh3 Rd6 41. Kh2 Rc6 42. Kh3 Rd6 {White really could win this.   Weighted Error Value: White=0.42/Black=0.41.  Loses game:     	White=1     	---        Missed win:     	White=1     	Black=1      Mistake:       	White=2     	Black=3      Inaccurate:     	White=1     	---        OK:         	White=12    	Black=11     Best:        	White=1     	Black=3      Brilliant:      	White=1     	---} 1/2-1/2

[Event "45th FIDE Olympiad 2024"]
[Site "Budapest"]
[Date "2024.09.16"]
[Round "6.79"]
[White "Whyms, Chapell"]
[Black "Hussain, Nimal"]
[Result "1/2-1/2"]
[WhiteElo "1701"]
[BlackElo "1805"]
[PlyCount "157"]
[EventDate "2024.09.05"]
[EventType "team-tourn"]
[EventCountry "HUN"]
[WhiteTeam "Bahamas"]
[BlackTeam "Maldives"]
[WhiteTeamCountry "BAH"]
[BlackTeamCountry "MDV"]
[TimeControl "40/5400+30:1800+30"]

1. d4 Nf6 2. c4 d5 3. cxd5 Nxd5 4. e4 Nf6 5. Nc3 e6 6. Nf3 c5 7. Bg5 h6 8. Be3 cxd4 9. Nxd4 Be7 10. Bc4 O-O 11. e5 Nfd7 12. f4 Qc7 13. Be2 a6 14. Rc1 Nc6 15. Nxc6 bxc6 16. O-O Rd8 17. Qc2 Bb7 18. Na4 Rac8 19. Bf3 c5 20. Bxb7 Qxb7 21. b3 Rc6 22. Nb2 Rdc8 23. Nc4 Qb5 24. Qe4 Nb6 25. Nxb6 Qxb6 26. Rc4 a5 27. Rfc1 Qb5 28. Kf2 R8c7 29. g3 Qb8 30. Ra4 Qb5 31. Rcc4 Rd7 32. Ke1 Rc8 33. Rc1 Rcd8 34. Rac4 Rc8 35. Qc2 Rdc7 36. Qb2 Qc6 37. Kf2 Qb5 38. Qa3 Kf8 39. Bd2 Ra8 40. R1c2 Ra6 41. Qc1 Rac6 42. Qe1 Ra6 43. Qe4 Kg8 44. b4 axb4 45. Bxb4 Rac6 46. Kg2 Rc8 47. a4 Qa6 48. a5 Bd8 49. Bd2 Be7 50. Qe3 Qb5 51. Qa3 Ra6 52. Kh3 Qb1 53. Qc1 Qxc1 54. Rxc1 Rca8 55. Ra1 Rd8 56. Ra2 Rda8 57. Be1 h5 58. Kg2 Kf8 59. Kf3 Ke8 60. Ke4 Rd8 61. Rb2 Rd7 62. Rb8+ Rd8 63. Rxd8+ Kxd8 64. Kd3 Kc7 65. Ra4 Kc6 66. Kc4 Bd8 67. Bf2 Rxa5 68. Rxa5 Bxa5 69. Bxc5 Be1 70. Bf8 g6 71. Be7 Bf2 72. Bh4 Bg1 73. h3 Bf2 74. Kd3 Kd5 75. Ke2 Bg1 76. Kf3 Kd4 77. Bf6 Be3 78. Bg5 Bc1 79. Bf6 1/2-1/2

[Event "45th FIDE Olympiad 2024"]
[Site "Budapest"]
[Date "2024.09.16"]
[Round "6.80"]
[White "Papp, Gabor"]
[Black "Murshed, Niaz"]
[Result "0-1"]
[ECO "C54"]
[WhiteElo "2550"]
[BlackElo "2318"]
[Annotator "TA"]
[PlyCount "124"]
[EventDate "2024.09.05"]
[EventType "team-tourn"]
[EventCountry "HUN"]
[SourceTitle "playchess.com"]
[Source "ChessBase"]
[SourceQuality "1"]
[WhiteTeam "Hungary B"]
[BlackTeam "Bangladesh"]
[BlackTeamCountry "BAN"]
[TimeControl "40/5400+30:1800+30"]

{[%evp 38,124,0,0,0,0,0,1,12,-47,0,-62,-65,-70,-47,-70,0,-31,-7,-33,-19,-38,-41,-99,-59,-61,-27,-102,0,-59,-54,-102,-38,-102,0,-102,0,-102,-100,-113,-73,-153,-159,-172,-174,-284,-108,-104,0,-233,-169,-220,-212,-373,-354,-416,-403,-389,-244,-245,-249,-231,-205,-197,-135,-158,-150,-139,-109,-261,-243,-646,-439,-717,-701,-1168,-1170,-1241,-1220,-1180,-1134,-2148,-1443,-1552,-1387,-1277,-1270,-29990,-29991]} 1. e4 e5 2. Nf3 Nc6 3. Bc4 Bc5 4. d3 Nf6 5. Bg5 h6 6. Bh4 g5 7. Bg3 d6 8. c3 Qe7 {C54: Giuoco Piano: 4 c3 Nf6, main lines with 5 d4 and 5 d3.} 9. Nbd2 a6 10. a4 Ba7 11. O-O Nh7 12. b4 h5 13. h4 g4 14. Ne1 Nf8 15. Nc2 Ng6 16. Ne3 Be6 17. d4 $146 ({Predecessor:} 17. b5 Nd8 18. d4 Nxh4 19. dxe5 dxe5 20. Bxe5 O-O 21. Bxe6 fxe6 22. Bd4 c5 23. bxc6 Nxc6 24. Bxa7 Rxa7 {½-½ Dominguez Perez,L (2758)-Svidler,P (2714) Sinquefield Cup 8th 2021 (6)}) 17... exd4 18. Nf5 Qf6 19. b5 Nce5 (19... dxc3 $5 20. bxc6 bxc6 $11) 20. Bxe6 fxe6 21. Nxd4 a5 22. Qb3 Kd7 23. Rad1 (23. f4 $11 gxf3 24. N2xf3 (24. Rad1 Rag8 $17) 24... Nxf3+ 25. Rxf3) 23... Raf8 (23... Rae8 $15) 24. Nc4 (24. f4 $11 gxf3 25. N2xf3) 24... Nxc4 $15 25. Qxc4 Bb6 $1 26. Kh1 Ne5 (26... Nxh4 $2 27. e5 Qg6 28. Bxh4 $18) 27. Qa2 Rhg8 28. Rfe1 Rg6 29. Re2 Kc8 30. Qb3 ({Only move:} 30. c4 $1 $15) 30... Re8 31. Qa2 Rgg8 32. Qb3 (32. Nb3 $1 $11) 32... Rg6 33. Qa2 $1 Kb8 34. Qb3 (34. c4 $15) 34... Rgg8 (34... Nd7 $17) 35. Qa2 (35. c4 $1 $15) 35... Rg6 36. Qb3 $1 Ka7 (36... Rg7 $17) 37. Qa2 (37. c4 $1 $11) 37... Rgg8 $17 38. Qb3 Rgf8 39. Qa2 {[#]} (39. c4 $142) 39... Ng6 $1 $17 40. Qc4 Qe7 41. Rde1 (41. Qd3 $142) 41... Ne5 $2 (41... Nxh4 $19 42. Qxe6 Qg5 (42... Qxe6 $2 43. Nxe6 Nxg2 44. Kxg2 $19)) 42. Qa2 $17 (42. Bxe5 $2 dxe5 43. g3 exd4 $19) 42... Ng6 (42... Kb8 $17 43. Qc2 Rf7) 43. Rd1 $2 (43. Qc4 $1 $11 {and White has nothing to worry.}) 43... Kb8 44. Rc1 (44. Qc4 {was called for.}) 44... Rf7 45. Kg1 $2 (45. Rd1) 45... Nxh4 $19 46. Qxe6 Qxe6 47. Nxe6 Ng6 48. Nd4 h4 49. Bh2 Rfe7 50. Rce1 Kc8 ({Black should try} 50... Rh8 $19 51. Kf1 Rf7) 51. Kf1 $17 Rf7 52. Nf5 d5 53. Nh6 $2 {[#]} (53. exd5 $2 Rxe2 54. Rxe2 Rxf5 $19) (53. g3 $17) 53... g3 $1 $19 54. Bg1 $2 (54. Nxf7 $2 {too greedy.} gxh2 55. Re3 h1=Q+ $19 (55... h1=B 56. Rf3 $17)) (54. Bxg3 Rh7 55. Bh2 (55. exd5 $2 {is the wrong capture.} Rxe2 56. Rxe2 hxg3 $19) 55... Rxh6 56. exd5 Rxe2 57. Rxe2) 54... Rff8 55. f3 (55. exd5 $142 Rxe2 (55... gxf2 56. Bxf2 Rxe2 57. Rxe2 $17) 56. Rxe2) 55... h3 $19 56. gxh3 Rxf3+ 57. Kg2 Nh4+ 58. Kh1 Rxe4 59. Rxe4 dxe4 60. Bxb6 cxb6 61. Ng4 g2+ 62. Kh2 Rf1 0-1

[Event "45th FIDE Olympiad 2024"]
[Site "Budapest"]
[Date "2024.09.16"]
[Round "6.80"]
[White "Ibrahim, Imran Saeed"]
[Black "Skinner, Francis"]
[Result "1-0"]
[WhiteElo "1697"]
[BlackElo "1628"]
[PlyCount "51"]
[EventDate "2024.09.05"]
[EventType "team-tourn"]
[EventCountry "HUN"]
[WhiteTeam "Maldives"]
[BlackTeam "Bahamas"]
[WhiteTeamCountry "MDV"]
[BlackTeamCountry "BAH"]
[TimeControl "40/5400+30:1800+30"]

1. e4 c5 2. Nf3 d6 3. d4 cxd4 4. Nxd4 Nf6 5. Nc3 a6 6. Bd3 Nbd7 7. f4 e6 8. Be3 Be7 9. O-O O-O 10. a4 Qc7 11. g4 Nc5 12. g5 Nxd3 13. cxd3 Nd7 14. Qh5 g6 15. Qe2 b6 16. h4 Re8 17. h5 Bb7 18. hxg6 hxg6 19. Qh2 Bf8 20. Nf3 Bg7 21. Rac1 Qd8 22. Bd4 Nc5 23. Bxg7 Kxg7 24. Qh6+ Kg8 25. Rc2 f6 26. Rh2 1-0